[Event "Titled Tuesday Blitz September 27 Early 2022"]
[White "Luxama, Jacques Muller"]
[Black "Heinemann, Josefine"]
[WhiteFideId "11900113"]
[BlackFideId "12900460"]
[WhiteElo "1931"]
[BlackElo "2300"]
[Result "0-1"]
[Round "04"]
[TimeControl "180+1"]
[Date "2022.09.27"]
[WhiteClock "0:00:05"]
[BlackClock "0:00:45"]

1. e4 {[%clk 0:03:00]}  c6 {[%clk 0:02:57]} 2. d4 {[%clk 0:02:59]}  d5 {[%clk 0:02:57]} 3. e5 {[%clk 0:03:00]}  Bf5 {[%clk 0:02:56]} 4. h4 {[%clk 0:03:00]}  h5 {[%clk 0:02:49]} 5. Bd3 {[%clk 0:03:00]}  Bxd3 {[%clk 0:02:47]} 6. Qxd3 {[%clk 0:03:01]}  e6 {[%clk 0:02:38]} 7. Nf3 {[%clk 0:03:01]}  Qa5+ {[%clk 0:02:37]} 8. c3 {[%clk 0:03:00]}  Qa6 {[%clk 0:02:37]} 9. Qxa6 {[%clk 0:03:00]}  Nxa6 {[%clk 0:02:37]} 10. b4 {[%clk 0:02:55]}  Nc7 {[%clk 0:02:36]} 11. a4 {[%clk 0:02:32]}  a5 {[%clk 0:02:20]} 12. Bd2 {[%clk 0:02:12]}  Nh6 {[%clk 0:02:09]} 13. Ke2 {[%clk 0:01:56]}  Nf5 {[%clk 0:02:07]} 14. Rc1 {[%clk 0:01:16]}  Be7 {[%clk 0:01:53]} 15. g3 {[%clk 0:01:15]}  Kd7 {[%clk 0:01:49]} 16. Rc2 {[%clk 0:00:31]}  Ra7 {[%clk 0:01:47]} 17. Rb2 {[%clk 0:00:27]}  axb4 {[%clk 0:01:43]} 18. cxb4 {[%clk 0:00:27]}  Rha8 {[%clk 0:01:43]} 19. Rba2 {[%clk 0:00:25]}  Nb5 {[%clk 0:01:35]} 20. Kd3 {[%clk 0:00:17]}  f6 {[%clk 0:01:26]} 21. Nc3 {[%clk 0:00:15]}  Nc7 {[%clk 0:01:10]} 22. Ne2 {[%clk 0:00:08]}  Na6 {[%clk 0:01:01]} 23. b5 {[%clk 0:00:07]}  cxb5 {[%clk 0:01:00]} 24. axb5 {[%clk 0:00:08]}  Nb4+ {[%clk 0:00:56]} 25. Bxb4 {[%clk 0:00:08]}  Rxa2 {[%clk 0:00:57]} 26. Rxa2 {[%clk 0:00:09]}  Rxa2 {[%clk 0:00:58]} 27. Bxe7 {[%clk 0:00:09]}  Kxe7 {[%clk 0:00:58]} 28. exf6+ {[%clk 0:00:09]}  gxf6 {[%clk 0:00:58]} 29. Nd2 {[%clk 0:00:05]}  e5 {[%clk 0:00:52]} 30. dxe5 {[%clk 0:00:05]}  fxe5 {[%clk 0:00:53]} 31. Nb3 {[%clk 0:00:05]}  b6 {[%clk 0:00:48]} 32. Nd2 {[%clk 0:00:04]}  e4+ {[%clk 0:00:44]} 33. Kc3 {[%clk 0:00:03]}  d4+ {[%clk 0:00:44]} 34. Nxd4 {[%clk 0:00:03]}  Nxd4 {[%clk 0:00:45]} 35. Kxd4 {[%clk 0:00:04]}  Rxd2+ {[%clk 0:00:45]} 36. Kxe4 {[%clk 0:00:05]}  Rxf2 {[%clk 0:00:45]} 0-1


[Site "https://www.chess.com"]

[Event "Titled Tuesday Blitz September 27 Early 2022"]
[White "Makhnev, Denis"]
[Black "Priasmoro, Novendra"]
[WhiteFideId "13707647"]
[BlackFideId "7105029"]
[WhiteElo "2486"]
[BlackElo "2309"]
[Result "1-0"]
[Round "04"]
[TimeControl "180+1"]
[Date "2022.09.27"]
[WhiteClock "0:00:16"]
[BlackClock "0:00:02"]

1. d4 {[%clk 0:03:00]}  Nf6 {[%clk 0:02:59]} 2. c4 {[%clk 0:03:00]}  g6 {[%clk 0:02:59]} 3. g3 {[%clk 0:03:01]}  Bg7 {[%clk 0:02:59]} 4. Bg2 {[%clk 0:03:01]}  O-O {[%clk 0:03:00]} 5. Nc3 {[%clk 0:03:01]}  d6 {[%clk 0:03:01]} 6. Nf3 {[%clk 0:03:02]}  Nc6 {[%clk 0:02:59]} 7. O-O {[%clk 0:03:02]}  e5 {[%clk 0:02:59]} 8. dxe5 {[%clk 0:03:02]}  dxe5 {[%clk 0:03:00]} 9. Bg5 {[%clk 0:03:02]}  Be6 {[%clk 0:03:00]} 10. Qc1 {[%clk 0:03:02]}  Qc8 {[%clk 0:02:55]} 11. Rd1 {[%clk 0:02:46]}  Nd7 {[%clk 0:02:55]} 12. Nd5 {[%clk 0:02:35]}  Re8 {[%clk 0:02:44]} 13. Bh6 {[%clk 0:02:35]}  f6 {[%clk 0:02:43]} 14. Bxg7 {[%clk 0:02:04]}  Kxg7 {[%clk 0:02:44]} 15. Qc3 {[%clk 0:02:04]}  Nd8 {[%clk 0:02:40]} 16. b4 {[%clk 0:02:00]}  Nf7 {[%clk 0:02:34]} 17. c5 {[%clk 0:01:58]}  c6 {[%clk 0:02:24]} 18. Ne3 {[%clk 0:01:57]}  Nf8 {[%clk 0:02:18]} 19. Nc4 {[%clk 0:01:41]}  Rd8 {[%clk 0:02:11]} 20. Rd2 {[%clk 0:01:34]}  Rxd2 {[%clk 0:02:10]} 21. Nfxd2 {[%clk 0:01:34]}  Bd5 {[%clk 0:02:06]} 22. Ne4 {[%clk 0:01:29]}  Qe6 {[%clk 0:02:06]} 23. Ned6 {[%clk 0:01:22]}  Bxg2 {[%clk 0:01:45]} 24. Kxg2 {[%clk 0:01:15]}  b5 {[%clk 0:01:45]} 25. Nxf7 {[%clk 0:01:09]}  bxc4 {[%clk 0:01:13]} 26. Nd6 {[%clk 0:01:09]}  a5 {[%clk 0:01:14]} 27. a3 {[%clk 0:01:00]}  axb4 {[%clk 0:01:09]} 28. axb4 {[%clk 0:01:01]}  Rxa1 {[%clk 0:01:06]} 29. Qxa1 {[%clk 0:01:02]}  Qd5+ {[%clk 0:00:54]} 30. e4 {[%clk 0:01:01]}  Qe6 {[%clk 0:00:28]} 31. Qc3 {[%clk 0:00:59]}  Qd7 {[%clk 0:00:10]} 32. Qxc4 {[%clk 0:00:36]}  Ne6 {[%clk 0:00:11]} 33. b5 {[%clk 0:00:36]}  cxb5 {[%clk 0:00:10]} 34. Qd5 {[%clk 0:00:37]}  Qe7 {[%clk 0:00:03]} 35. c6 {[%clk 0:00:29]}  b4 {[%clk 0:00:04]} 36. Nc8 {[%clk 0:00:20]}  Qe8 {[%clk 0:00:02]} 37. Na7 {[%clk 0:00:20]}  Kh6 {[%clk 0:00:01]} 38. Qd2+ {[%clk 0:00:16]}  Kg7 {[%clk 0:00:01]} 39. Qxb4 {[%clk 0:00:17]}  Qf7 {[%clk 0:00:01]} 40. Qb7 {[%clk 0:00:17]}  Qc7 {[%clk 0:00:01]} 41. Nb5 {[%clk 0:00:16]}  Qd7 {[%clk 0:00:02]} 42. Qxd7+ {[%clk 0:00:16]} 1-0


[Site "https://www.chess.com"]

[Event "Titled Tuesday Blitz September 27 Early 2022"]
[White "Maltsevskaya, Aleksandra"]
[Black "Zong, Davis"]
[WhiteFideId "24174041"]
[BlackFideId "30903955"]
[WhiteElo "2243"]
[BlackElo "2061"]
[Result "1-0"]
[Round "04"]
[TimeControl "180+1"]
[Date "2022.09.27"]
[WhiteClock "0:00:57"]
[BlackClock "0:00:03"]

1. h3 {[%clk 0:03:00]}  d5 {[%clk 0:02:59]} 2. g4 {[%clk 0:03:01]}  e5 {[%clk 0:02:59]} 3. Bg2 {[%clk 0:03:00]}  h5 {[%clk 0:02:57]} 4. d3 {[%clk 0:02:58]}  hxg4 {[%clk 0:02:56]} 5. hxg4 {[%clk 0:02:59]}  Rxh1 {[%clk 0:02:56]} 6. Bxh1 {[%clk 0:02:59]}  Bxg4 {[%clk 0:02:57]} 7. Nc3 {[%clk 0:02:58]}  c6 {[%clk 0:02:53]} 8. Nf3 {[%clk 0:02:54]}  Nd7 {[%clk 0:02:52]} 9. e4 {[%clk 0:02:53]}  d4 {[%clk 0:02:49]} 10. Ne2 {[%clk 0:02:53]}  Qf6 {[%clk 0:02:38]} 11. Ng3 {[%clk 0:02:53]}  O-O-O {[%clk 0:02:32]} 12. Bg2 {[%clk 0:02:50]}  Ne7 {[%clk 0:02:27]} 13. Bg5 {[%clk 0:02:37]}  Qg6 {[%clk 0:02:05]} 14. Qc1 {[%clk 0:02:25]}  f6 {[%clk 0:01:57]} 15. Bd2 {[%clk 0:02:22]}  f5 {[%clk 0:01:49]} 16. Nh4 {[%clk 0:02:15]}  Qh7 {[%clk 0:01:49]} 17. Nhxf5 {[%clk 0:02:14]}  Nxf5 {[%clk 0:01:48]} 18. exf5 {[%clk 0:02:10]}  Qh2 {[%clk 0:01:43]} 19. Kf1 {[%clk 0:02:07]}  e4 {[%clk 0:01:25]} 20. Bf4 {[%clk 0:02:03]}  Bh3 {[%clk 0:01:16]} 21. Bxh3 {[%clk 0:01:50]}  Qxh3+ {[%clk 0:01:17]} 22. Kg1 {[%clk 0:01:51]}  e3 {[%clk 0:01:04]} 23. Qd1 {[%clk 0:01:39]}  exf2+ {[%clk 0:01:00]} 24. Kxf2 {[%clk 0:01:38]}  Nf6 {[%clk 0:00:58]} 25. Qh1 {[%clk 0:01:28]}  Ng4+ {[%clk 0:00:45]} 26. Ke2 {[%clk 0:01:28]}  Re8+ {[%clk 0:00:38]} 27. Kd2 {[%clk 0:01:28]}  Qxh1 {[%clk 0:00:34]} 28. Rxh1 {[%clk 0:01:29]}  Bb4+ {[%clk 0:00:24]} 29. c3 {[%clk 0:01:29]}  dxc3+ {[%clk 0:00:25]} 30. bxc3 {[%clk 0:01:30]}  Ba5 {[%clk 0:00:21]} 31. Rh7 {[%clk 0:01:26]}  Rg8 {[%clk 0:00:20]} 32. Nh5 {[%clk 0:01:22]}  Nf6 {[%clk 0:00:08]} 33. Rxg7 {[%clk 0:01:18]}  Rxg7 {[%clk 0:00:08]} 34. Nxg7 {[%clk 0:01:18]}  Kd7 {[%clk 0:00:09]} 35. Be5 {[%clk 0:01:12]}  Bd8 {[%clk 0:00:08]} 36. Ne6 {[%clk 0:01:11]}  Be7 {[%clk 0:00:08]} 37. Nf4 {[%clk 0:01:10]}  Ng4 {[%clk 0:00:07]} 38. Ng6 {[%clk 0:01:02]}  Bg5+ {[%clk 0:00:06]} 39. Ke2 {[%clk 0:01:02]}  Nh6 {[%clk 0:00:03]} 40. Kf3 {[%clk 0:00:57]}  Nxf5 {[%clk 0:00:03]} 41. Kg4 {[%clk 0:00:58]}  Bd2 {[%clk 0:00:03]} 42. Kxf5 {[%clk 0:00:57]} 1-0


[Site "https://www.chess.com"]

[Event "Titled Tuesday Blitz September 27 Early 2022"]
[White "Manukyan, Sargis A."]
[Black "Le, Tuan Minh"]
[WhiteFideId "13303970"]
[BlackFideId "12401153"]
[WhiteElo "2187"]
[BlackElo "2530"]
[Result "0-1"]
[Round "04"]
[TimeControl "180+1"]
[Date "2022.09.27"]
[WhiteClock "0:00:16"]
[BlackClock "0:00:10"]

1. d4 {[%clk 0:02:59]}  d5 {[%clk 0:02:59]} 2. c4 {[%clk 0:03:00]}  c6 {[%clk 0:02:58]} 3. Nc3 {[%clk 0:03:00]}  Nf6 {[%clk 0:02:58]} 4. e3 {[%clk 0:03:01]}  a6 {[%clk 0:02:58]} 5. Nf3 {[%clk 0:03:01]}  Bf5 {[%clk 0:02:58]} 6. Bd3 {[%clk 0:03:01]}  Bg6 {[%clk 0:02:58]} 7. O-O {[%clk 0:03:02]}  e6 {[%clk 0:02:58]} 8. Ne5 {[%clk 0:03:02]}  Nbd7 {[%clk 0:02:58]} 9. f4 {[%clk 0:03:03]}  Bxd3 {[%clk 0:02:40]} 10. Qxd3 {[%clk 0:03:02]}  Bb4 {[%clk 0:02:41]} 11. a3 {[%clk 0:03:01]}  Bxc3 {[%clk 0:02:39]} 12. bxc3 {[%clk 0:03:02]}  O-O {[%clk 0:02:38]} 13. c5 {[%clk 0:03:01]}  Nxe5 {[%clk 0:02:33]} 14. fxe5 {[%clk 0:03:02]}  Ne4 {[%clk 0:02:34]} 15. Rb1 {[%clk 0:03:01]}  Rb8 {[%clk 0:02:32]} 16. c4 {[%clk 0:02:51]}  b6 {[%clk 0:02:17]} 17. cxd5 {[%clk 0:02:50]}  cxd5 {[%clk 0:02:18]} 18. cxb6 {[%clk 0:02:41]}  Rxb6 {[%clk 0:02:19]} 19. Bd2 {[%clk 0:02:41]}  Rxb1 {[%clk 0:02:06]} 20. Rxb1 {[%clk 0:02:42]}  f6 {[%clk 0:02:05]} 21. Bb4 {[%clk 0:02:24]}  Re8 {[%clk 0:01:52]} 22. exf6 {[%clk 0:02:21]}  Qxf6 {[%clk 0:01:52]} 23. Rf1 {[%clk 0:02:22]}  Qg5 {[%clk 0:01:47]} 24. Rf3 {[%clk 0:02:14]}  Rc8 {[%clk 0:01:46]} 25. h3 {[%clk 0:02:01]}  h5 {[%clk 0:00:45]} 26. Qxa6 {[%clk 0:01:58]}  Rc1+ {[%clk 0:00:45]} 27. Kh2 {[%clk 0:01:54]}  Qg6 {[%clk 0:00:40]} 28. h4 {[%clk 0:01:39]}  Rc2 {[%clk 0:00:33]} 29. Qf1 {[%clk 0:01:38]}  Nf6 {[%clk 0:00:33]} 30. Rg3 {[%clk 0:01:34]}  Ng4+ {[%clk 0:00:32]} 31. Kh3 {[%clk 0:01:34]}  Kh7 {[%clk 0:00:22]} 32. Qf3 {[%clk 0:01:25]}  Rf2 {[%clk 0:00:12]} 33. Qd1 {[%clk 0:01:20]}  Qf5 {[%clk 0:00:13]} 34. Rf3 {[%clk 0:01:10]}  Qe4 {[%clk 0:00:06]} 35. Rg3 {[%clk 0:01:09]}  Rb2 {[%clk 0:00:05]} 36. Qf3 {[%clk 0:01:07]}  Qg6 {[%clk 0:00:06]} 37. Bd6 {[%clk 0:00:59]}  Rb1 {[%clk 0:00:05]} 38. Rxg4 {[%clk 0:00:47]}  hxg4+ {[%clk 0:00:06]} 39. Qxg4 {[%clk 0:00:47]}  Rb3 {[%clk 0:00:07]} 40. Qf3 {[%clk 0:00:43]}  Qf5+ {[%clk 0:00:06]} 41. Kg3 {[%clk 0:00:40]}  Qg6+ {[%clk 0:00:07]} 42. Kh3 {[%clk 0:00:40]}  Rb1 {[%clk 0:00:04]} 43. Kh2 {[%clk 0:00:33]}  Qf5 {[%clk 0:00:04]} 44. Qe2 {[%clk 0:00:24]}  Rb3 {[%clk 0:00:02]} 45. h5 {[%clk 0:00:20]}  Rc3 {[%clk 0:00:02]} 46. a4 {[%clk 0:00:16]}  Rc2 {[%clk 0:00:03]} 47. Qd1 {[%clk 0:00:15]}  Qe4 {[%clk 0:00:03]} 48. Qf1 {[%clk 0:00:12]}  Qxe3 {[%clk 0:00:03]} 49. Be5 {[%clk 0:00:09]}  Qe4 {[%clk 0:00:02]} 50. a5 {[%clk 0:00:10]}  Ra2 {[%clk 0:00:02]} 51. a6 {[%clk 0:00:10]}  Rb2 {[%clk 0:00:03]} 52. Kg1 {[%clk 0:00:08]}  Rb1 {[%clk 0:00:03]} 53. a7 {[%clk 0:00:08]}  Rxf1+ {[%clk 0:00:03]} 54. Kxf1 {[%clk 0:00:09]}  Qb1+ {[%clk 0:00:04]} 55. Kf2 {[%clk 0:00:10]}  Qa2+ {[%clk 0:00:05]} 56. Kg3 {[%clk 0:00:11]}  Qxa7 {[%clk 0:00:06]} 57. Kh4 {[%clk 0:00:11]}  Qf7 {[%clk 0:00:07]} 58. Bxg7 {[%clk 0:00:12]}  Qxg7 {[%clk 0:00:07]} 59. g4 {[%clk 0:00:13]}  Qxd4 {[%clk 0:00:08]} 60. Kg5 {[%clk 0:00:13]}  Qe3+ {[%clk 0:00:08]} 61. Kh4 {[%clk 0:00:14]}  Kh6 {[%clk 0:00:09]} 62. g5+ {[%clk 0:00:15]}  Qxg5+ {[%clk 0:00:10]} 63. Kh3 {[%clk 0:00:16]}  Kxh5 {[%clk 0:00:10]} 0-1


[Site "https://www.chess.com"]

[Event "Titled Tuesday Blitz September 27 Early 2022"]
[White "Martin Carmona, Gaston Manuel"]
[Black "Buscar, Michael"]
[WhiteFideId "22284567"]
[BlackFideId "2603616"]
[WhiteElo "2162"]
[BlackElo "2010"]
[Result "0-1"]
[Round "04"]
[TimeControl "180+1"]
[Date "2022.09.27"]
[WhiteClock "0:00:03"]
[BlackClock "0:00:12"]

1. d4 {[%clk 0:03:00]}  d5 {[%clk 0:02:57]} 2. c4 {[%clk 0:03:01]}  e6 {[%clk 0:02:57]} 3. Nf3 {[%clk 0:03:00]}  Nf6 {[%clk 0:02:56]} 4. Nbd2 {[%clk 0:03:01]}  a6 {[%clk 0:02:57]} 5. e3 {[%clk 0:02:59]}  Be7 {[%clk 0:02:53]} 6. b3 {[%clk 0:02:59]}  O-O {[%clk 0:02:53]} 7. Bb2 {[%clk 0:03:00]}  c5 {[%clk 0:02:44]} 8. dxc5 {[%clk 0:02:58]}  Bxc5 {[%clk 0:02:44]} 9. cxd5 {[%clk 0:02:58]}  exd5 {[%clk 0:02:45]} 10. Rc1 {[%clk 0:02:58]}  Bd6 {[%clk 0:02:45]} 11. Bd3 {[%clk 0:02:57]}  Nc6 {[%clk 0:02:45]} 12. O-O {[%clk 0:02:53]}  Bc7 {[%clk 0:02:43]} 13. Nd4 {[%clk 0:02:49]}  Bg4 {[%clk 0:02:36]} 14. Be2 {[%clk 0:02:48]}  Qd6 {[%clk 0:02:35]} 15. g3 {[%clk 0:02:49]}  Bh3 {[%clk 0:02:36]} 16. Re1 {[%clk 0:02:49]}  Rfe8 {[%clk 0:02:33]} 17. Bf1 {[%clk 0:02:48]}  Bg4 {[%clk 0:02:32]} 18. Be2 {[%clk 0:02:48]}  Bh3 {[%clk 0:02:32]} 19. Bf3 {[%clk 0:02:49]}  Ne5 {[%clk 0:02:24]} 20. Bg2 {[%clk 0:02:48]}  Bxg2 {[%clk 0:02:22]} 21. Kxg2 {[%clk 0:02:48]}  Nd3 {[%clk 0:02:23]} 22. Qc2 {[%clk 0:02:35]}  Nxe1+ {[%clk 0:02:19]} 23. Rxe1 {[%clk 0:02:36]}  Rad8 {[%clk 0:02:17]} 24. Qd3 {[%clk 0:02:30]}  Ba5 {[%clk 0:02:05]} 25. Rd1 {[%clk 0:02:24]}  Ne4 {[%clk 0:01:58]} 26. N2f3 {[%clk 0:02:20]}  Rc8 {[%clk 0:01:51]} 27. Nf5 {[%clk 0:02:20]}  Qc6 {[%clk 0:01:41]} 28. Bxg7 {[%clk 0:02:11]}  Qc2 {[%clk 0:01:40]} 29. Qxc2 {[%clk 0:01:49]}  Rxc2 {[%clk 0:01:39]} 30. Rf1 {[%clk 0:01:22]}  Rxa2 {[%clk 0:01:30]} 31. Bd4 {[%clk 0:01:12]}  Bc3 {[%clk 0:01:21]} 32. Bxc3 {[%clk 0:00:56]}  Nxc3 {[%clk 0:01:21]} 33. N3d4 {[%clk 0:00:56]}  Ne4 {[%clk 0:01:19]} 34. h4 {[%clk 0:00:52]}  Kf8 {[%clk 0:01:17]} 35. g4 {[%clk 0:00:51]}  Rc8 {[%clk 0:01:17]} 36. g5 {[%clk 0:00:41]}  a5 {[%clk 0:01:09]} 37. h5 {[%clk 0:00:40]}  Nxg5 {[%clk 0:01:07]} 38. h6 {[%clk 0:00:32]}  Ne4 {[%clk 0:01:00]} 39. Ng3 {[%clk 0:00:29]}  a4 {[%clk 0:00:52]} 40. Nxe4 {[%clk 0:00:26]}  dxe4 {[%clk 0:00:52]} 41. bxa4 {[%clk 0:00:27]}  Rxa4 {[%clk 0:00:52]} 42. Rb1 {[%clk 0:00:24]}  Rc7 {[%clk 0:00:50]} 43. Rb5 {[%clk 0:00:21]}  Ra6 {[%clk 0:00:49]} 44. Nf5 {[%clk 0:00:20]}  Rg6+ {[%clk 0:00:42]} 45. Kf1 {[%clk 0:00:18]}  b6 {[%clk 0:00:42]} 46. Rd5 {[%clk 0:00:18]}  Ke8 {[%clk 0:00:39]} 47. Re5+ {[%clk 0:00:18]}  Kd8 {[%clk 0:00:38]} 48. Rxe4 {[%clk 0:00:18]}  Rc5 {[%clk 0:00:36]} 49. Rf4 {[%clk 0:00:15]}  b5 {[%clk 0:00:35]} 50. e4 {[%clk 0:00:13]}  b4 {[%clk 0:00:35]} 51. Rf3 {[%clk 0:00:14]}  Rb6 {[%clk 0:00:34]} 52. Rd3+ {[%clk 0:00:14]}  Kc7 {[%clk 0:00:33]} 53. Ne3 {[%clk 0:00:12]}  Rc1+ {[%clk 0:00:32]} 54. Ke2 {[%clk 0:00:13]}  Kb7 {[%clk 0:00:31]} 55. Nd5 {[%clk 0:00:12]}  Rb5 {[%clk 0:00:31]} 56. Rb3 {[%clk 0:00:11]}  Ra1 {[%clk 0:00:28]} 57. Rxb4 {[%clk 0:00:10]}  Rxb4 {[%clk 0:00:28]} 58. Nxb4 {[%clk 0:00:11]}  Ra4 {[%clk 0:00:27]} 59. Nd3 {[%clk 0:00:12]}  Rxe4+ {[%clk 0:00:28]} 60. Kf3 {[%clk 0:00:12]}  Rh4 {[%clk 0:00:28]} 61. Ne5 {[%clk 0:00:12]}  Rxh6 {[%clk 0:00:29]} 62. Kg4 {[%clk 0:00:12]}  Rf6 {[%clk 0:00:28]} 63. f4 {[%clk 0:00:13]}  Kc7 {[%clk 0:00:28]} 64. Kg5 {[%clk 0:00:13]}  Ra6 {[%clk 0:00:21]} 65. Nxf7 {[%clk 0:00:13]}  Kd7 {[%clk 0:00:20]} 66. f5 {[%clk 0:00:12]}  Ke7 {[%clk 0:00:20]} 67. Nh6 {[%clk 0:00:13]}  Kf8 {[%clk 0:00:20]} 68. Ng4 {[%clk 0:00:12]}  Kg7 {[%clk 0:00:20]} 69. Ne5 {[%clk 0:00:12]}  Ra5 {[%clk 0:00:20]} 70. Ng4 {[%clk 0:00:12]}  Kf7 {[%clk 0:00:19]} 71. Nh6+ {[%clk 0:00:12]}  Kg7 {[%clk 0:00:19]} 72. Ng4 {[%clk 0:00:13]}  Ra1 {[%clk 0:00:18]} 73. f6+ {[%clk 0:00:07]}  Kf7 {[%clk 0:00:18]} 74. Ne5+ {[%clk 0:00:07]}  Ke6 {[%clk 0:00:17]} 75. Ng4 {[%clk 0:00:07]}  Rg1 {[%clk 0:00:17]} 76. Kh5 {[%clk 0:00:06]}  Kf7 {[%clk 0:00:15]} 77. Kg5 {[%clk 0:00:06]}  h6+ {[%clk 0:00:13]} 78. Kf5 {[%clk 0:00:04]}  h5 {[%clk 0:00:12]} 79. Nh6+ {[%clk 0:00:04]}  Kf8 {[%clk 0:00:12]} 80. Ke6 {[%clk 0:00:04]}  h4 {[%clk 0:00:12]} 81. Nf5 {[%clk 0:00:04]}  h3 {[%clk 0:00:12]} 82. f7 {[%clk 0:00:05]}  Re1+ {[%clk 0:00:12]} 83. Kf6 {[%clk 0:00:04]}  Rf1 {[%clk 0:00:12]} 84. Kg5 {[%clk 0:00:03]}  Rxf5+ {[%clk 0:00:12]} 0-1


[Site "https://www.chess.com"]

[Event "Titled Tuesday Blitz September 27 Early 2022"]
[White "Matinian, Nikita"]
[Black "Sargissyan, Sargis"]
[WhiteFideId "24129100"]
[BlackFideId "13303210"]
[WhiteElo "2422"]
[BlackElo "2102"]
[Result "1-0"]
[Round "04"]
[TimeControl "180+1"]
[Date "2022.09.27"]
[WhiteClock "0:02:31"]
[BlackClock "0:01:53"]

1. e4 {[%clk 0:03:00]}  e5 {[%clk 0:02:52]} 2. Nf3 {[%clk 0:02:57]}  Nc6 {[%clk 0:02:51]} 3. Bb5 {[%clk 0:02:58]}  a6 {[%clk 0:02:51]} 4. Ba4 {[%clk 0:02:58]}  Nf6 {[%clk 0:02:51]} 5. O-O {[%clk 0:02:59]}  Be7 {[%clk 0:02:52]} 6. Re1 {[%clk 0:02:58]}  b5 {[%clk 0:02:52]} 7. Bb3 {[%clk 0:02:58]}  d6 {[%clk 0:02:53]} 8. a3 {[%clk 0:02:55]}  O-O {[%clk 0:02:52]} 9. d3 {[%clk 0:02:55]}  Na5 {[%clk 0:02:36]} 10. Ba2 {[%clk 0:02:54]}  c5 {[%clk 0:02:37]} 11. Bg5 {[%clk 0:02:54]}  Nc6 {[%clk 0:02:32]} 12. Nc3 {[%clk 0:02:54]}  Be6 {[%clk 0:02:29]} 13. Bxf6 {[%clk 0:02:53]}  Bxf6 {[%clk 0:02:29]} 14. Nd5 {[%clk 0:02:53]}  Bg5 {[%clk 0:02:18]} 15. Nxg5 {[%clk 0:02:43]}  Qxg5 {[%clk 0:02:18]} 16. Nc7 {[%clk 0:02:44]}  Bh3 {[%clk 0:02:08]} 17. Qf3 {[%clk 0:02:41]}  Bg4 {[%clk 0:01:58]} 18. Qg3 {[%clk 0:02:40]}  Ra7 {[%clk 0:01:58]} 19. Nd5 {[%clk 0:02:37]}  Qh5 {[%clk 0:01:53]} 20. h3 {[%clk 0:02:31]}  Be6 {[%clk 0:01:53]} 21. Nf6+ {[%clk 0:02:31]} 1-0


[Site "https://www.chess.com"]

[Event "Titled Tuesday Blitz September 27 Early 2022"]
[White "Mickiewicz, Piotr"]
[Black "Itkis, Boris"]
[WhiteFideId "1114891"]
[BlackFideId "1209167"]
[WhiteElo "2246"]
[BlackElo "2207"]
[Result "0-1"]
[Round "04"]
[TimeControl "180+1"]
[Date "2022.09.27"]
[WhiteClock "0:00:01"]
[BlackClock "0:00:07"]

1. Nf3 {[%clk 0:03:00]}  Nf6 {[%clk 0:02:58]} 2. g3 {[%clk 0:03:01]}  d5 {[%clk 0:02:58]} 3. Bg2 {[%clk 0:03:01]}  c6 {[%clk 0:02:57]} 4. O-O {[%clk 0:03:02]}  Bf5 {[%clk 0:02:58]} 5. d3 {[%clk 0:03:02]}  Nbd7 {[%clk 0:02:57]} 6. Nbd2 {[%clk 0:03:03]}  Bg6 {[%clk 0:02:56]} 7. b3 {[%clk 0:03:04]}  e5 {[%clk 0:02:56]} 8. Bb2 {[%clk 0:03:04]}  Bd6 {[%clk 0:02:57]} 9. Nh4 {[%clk 0:02:57]}  O-O {[%clk 0:02:55]} 10. Nxg6 {[%clk 0:02:54]}  hxg6 {[%clk 0:02:55]} 11. e4 {[%clk 0:02:54]}  Re8 {[%clk 0:02:48]} 12. Re1 {[%clk 0:02:51]}  Qa5 {[%clk 0:02:35]} 13. a3 {[%clk 0:02:42]}  Rac8 {[%clk 0:02:26]} 14. b4 {[%clk 0:02:38]}  Qc7 {[%clk 0:02:21]} 15. c4 {[%clk 0:02:38]}  d4 {[%clk 0:02:17]} 16. c5 {[%clk 0:02:36]}  Be7 {[%clk 0:02:09]} 17. Nc4 {[%clk 0:02:37]}  b5 {[%clk 0:01:57]} 18. cxb6 {[%clk 0:02:33]}  axb6 {[%clk 0:01:58]} 19. Rc1 {[%clk 0:02:15]}  c5 {[%clk 0:01:44]} 20. b5 {[%clk 0:02:13]}  Ra8 {[%clk 0:01:29]} 21. h4 {[%clk 0:02:12]}  Rf8 {[%clk 0:01:03]} 22. Bh3 {[%clk 0:02:12]}  Rab8 {[%clk 0:01:00]} 23. Rc2 {[%clk 0:02:08]}  Ne8 {[%clk 0:00:59]} 24. Bc1 {[%clk 0:01:54]}  Nd6 {[%clk 0:00:59]} 25. a4 {[%clk 0:01:44]}  Nxc4 {[%clk 0:00:55]} 26. Rxc4 {[%clk 0:01:43]}  Ra8 {[%clk 0:00:53]} 27. h5 {[%clk 0:01:17]}  gxh5 {[%clk 0:00:46]} 28. Qxh5 {[%clk 0:01:18]}  Nf6 {[%clk 0:00:44]} 29. Qe2 {[%clk 0:01:14]}  Ne8 {[%clk 0:00:42]} 30. f4 {[%clk 0:01:12]}  Nd6 {[%clk 0:00:38]} 31. Qc2 {[%clk 0:00:57]}  Nxc4 {[%clk 0:00:25]} 32. Qxc4 {[%clk 0:00:58]}  Ra7 {[%clk 0:00:17]} 33. Bg4 {[%clk 0:00:56]}  Rfa8 {[%clk 0:00:16]} 34. Bd1 {[%clk 0:00:55]}  Qd6 {[%clk 0:00:14]} 35. Bb3 {[%clk 0:00:54]}  Bf6 {[%clk 0:00:13]} 36. Kg2 {[%clk 0:00:48]}  Kf8 {[%clk 0:00:12]} 37. Kf3 {[%clk 0:00:48]}  Qe6 {[%clk 0:00:12]} 38. Qc2 {[%clk 0:00:36]}  Qh3 {[%clk 0:00:10]} 39. Rg1 {[%clk 0:00:17]}  Qh5+ {[%clk 0:00:09]} 40. Kg2 {[%clk 0:00:17]}  Ke7 {[%clk 0:00:08]} 41. Rh1 {[%clk 0:00:16]}  Qg4 {[%clk 0:00:07]} 42. Qd1 {[%clk 0:00:12]}  Qxd1 {[%clk 0:00:07]} 43. Rxd1 {[%clk 0:00:12]}  Rxa4 {[%clk 0:00:06]} 44. Bxa4 {[%clk 0:00:12]}  Rxa4 {[%clk 0:00:07]} 45. fxe5 {[%clk 0:00:12]}  Bxe5 {[%clk 0:00:07]} 46. Bf4 {[%clk 0:00:13]}  Ke6 {[%clk 0:00:06]} 47. Rh1 {[%clk 0:00:12]}  Rb4 {[%clk 0:00:05]} 48. Rh5 {[%clk 0:00:10]}  f6 {[%clk 0:00:05]} 49. Bxe5 {[%clk 0:00:10]}  fxe5 {[%clk 0:00:06]} 50. Rg5 {[%clk 0:00:10]}  Rxb5 {[%clk 0:00:06]} 51. Rxg7 {[%clk 0:00:10]}  Rb2+ {[%clk 0:00:06]} 52. Kf3 {[%clk 0:00:08]}  Rb3 {[%clk 0:00:06]} 53. Rg6+ {[%clk 0:00:08]}  Kd7 {[%clk 0:00:06]} 54. Kg4 {[%clk 0:00:07]}  Rxd3 {[%clk 0:00:06]} 55. Kf5 {[%clk 0:00:08]}  Rf3+ {[%clk 0:00:05]} 56. Kxe5 {[%clk 0:00:09]}  d3 {[%clk 0:00:06]} 57. g4 {[%clk 0:00:06]}  Kc7 {[%clk 0:00:05]} 58. Rg7+ {[%clk 0:00:04]}  Kc6 {[%clk 0:00:05]} 59. Rg6+ {[%clk 0:00:04]}  Kb5 {[%clk 0:00:06]} 60. Rd6 {[%clk 0:00:04]}  c4 {[%clk 0:00:06]} 61. g5 {[%clk 0:00:05]}  c3 {[%clk 0:00:06]} 62. Rd5+ {[%clk 0:00:04]}  Kb4 {[%clk 0:00:06]} 63. Rd4+ {[%clk 0:00:03]}  Kb3 {[%clk 0:00:06]} 64. Rd6 {[%clk 0:00:03]}  c2 {[%clk 0:00:07]} 65. Rxb6+ {[%clk 0:00:03]}  Ka2 {[%clk 0:00:07]} 66. Rc6 {[%clk 0:00:03]}  Kb1 {[%clk 0:00:06]} 67. g6 {[%clk 0:00:04]}  Rg3 {[%clk 0:00:06]} 68. Rb6+ {[%clk 0:00:02]}  Kc1 {[%clk 0:00:07]} 69. Rc6 {[%clk 0:00:03]}  Kd1 {[%clk 0:00:07]} 70. Kf4 {[%clk 0:00:03]}  Rxg6 {[%clk 0:00:07]} 71. Rxg6 {[%clk 0:00:04]}  c1=Q+ {[%clk 0:00:07]} 72. Kf5 {[%clk 0:00:03]}  Qc5+ {[%clk 0:00:07]} 73. e5 {[%clk 0:00:02]}  d2 {[%clk 0:00:08]} 74. Rg2 {[%clk 0:00:01]}  Kc1 {[%clk 0:00:07]} 0-1


[Site "https://www.chess.com"]